bitfinex/quotes_SOLUSD_20241101
["timestamp","ask_amount","ask_price","bid_price","bid_amount"]
[1730424214674,12.40486104,167.94,167.9,20.8453]
[1730424215776,12.40486104,167.95,167.9,20.8453]
[1730424216274,12.40486104,167.93,167.9,20.8453]
[1730424216673,21.5312,167.98,167.9,20.8453]
[1730424216674,12.40486104,167.95,167.9,20.8453]
[1730424216863,12.40486104,167.91,167.87,5.9569]
[1730424217373,12.40486104,167.91,167.87,20.8493]
[1730424218657,12.40486104,167.89,167.85,5.9576]
[1730424218859,12.40486104,167.9,167.84,13.00725734]
[1730424219056,12.40486104,167.85,167.84,0.6023963]
[1730424219358,16.0627,167.88,167.84,0.6023963]
[1730424219763,28.46756104,167.88,167.84,6.5602963]
[1730424220073,28.46756104,167.88,167.84,0.6023963]
[1730424220759,12.40486104,167.87,167.84,0.6023963]
[1730424221272,12.40486104,167.86,167.84,0.6023963]
[1730424221581,12.40486104,167.87,167.84,0.6023963]
[1730424221958,34.42436104,167.88,167.84,0.6023963]
[1730424222353,12.40486104,167.87,167.84,0.6023963]
[1730424223274,12.40486104,167.86,167.84,0.6023963]
[1730424223477,34.42436104,167.88,167.84,0.6023963]
[1730424223671,18.36106104,167.9,167.85,12.40486104]
[1730424223873,18.36036104,167.91,167.85,12.40486104]
[1730424224180,12.40486104,167.9,167.85,18.36246104]
[1730424224365,12.40486104,167.93,167.87,12.40486104]
[1730424225075,12.40486104,167.92,167.86,12.40486104]
[1730424226277,12.40486104,167.92,167.87,20.8493]
[1730424226574,12.40486104,167.93,167.87,33.25416104]
[1730424227092,12.40486104,167.91,167.87,20.8493]
[1730424227785,16.0591,167.96,167.9,12.40486104]
[1730424227961,12.40486104,167.99,167.93,12.40486104]
[1730424228159,29.00066104,168.0,167.95,12.40486104]
[1730424228481,12.40486104,167.98,167.93,12.40486104]
[1730424228771,29.00066104,168.0,167.94,12.40486104]
[1730424228974,12.40486104,167.99,167.93,12.40486104]
[1730424229392,12.40486104,167.99,167.94,12.40486104]
[1730424229559,12.40486104,168.0,167.94,12.40486104]
[1730424229764,12.40486104,167.97,167.93,14.8871]
[1730424230388,15.1283,168.04,167.93,14.8871]
[1730424230389,12.40486104,167.96,167.93,14.8871]
[1730424231353,12.40486104,167.95,167.93,14.8871]
[1730424231553,12.40486104,167.96,167.93,14.8871]
[1730424231784,12.40486104,167.97,167.93,14.8871]
[1730424232887,5.953,167.98,167.93,14.8871]
[1730424232888,12.40486104,167.98,167.93,14.8871]
[1730424234059,12.40486104,167.98,167.93,20.8419]
[1730424234670,12.40486104,167.97,167.93,20.8419]
[1730424237176,12.40486104,167.98,167.93,27.29196104]
[1730424237965,12.40486104,167.98,167.93,14.8871]
[1730424238398,12.40486104,167.98,167.93,20.8419]
[1730424239289,12.40486104,167.99,167.93,33.24676104]
[1730424239461,12.40486104,167.98,167.93,33.24676104]
[1730424239664,12.40486104,167.98,167.93,20.8419]
[1730424240092,12.40486104,168.01,167.95,12.40486104]
[1730424240272,12.40486104,167.98,167.93,20.8419]
[1730424240588,12.40486104,167.97,167.93,14.8871]
[1730424240963,12.40486104,167.98,167.93,20.8419]
[1730424241293,12.40486104,167.99,167.93,33.24676104]
[1730424241684,5.952,168.01,167.94,12.40486104]
[1730424241685,18.35686104,168.01,167.94,12.40486104]
[1730424241885,12.40486104,168.0,167.94,12.40486104]
[1730424242192,12.40486104,168.02,167.96,12.40486104]
[1730424242695,21.0794,168.04,167.97,12.40486104]
[1730424242696,12.40486104,168.03,167.97,12.40486104]
[1730424242992,12.40486104,168.02,167.96,12.40486104]
[1730424243686,12.40486104,168.01,167.97,20.837]
[1730424244267,12.40486104,168.0,167.97,20.837]
[1730424244674,12.40486104,168.0,167.97,14.8836]
[1730424244872,12.40486104,167.98,167.92,20.8425]
[1730424245075,12.40486104,167.95,167.92,20.8425]
[1730424245292,12.40486104,167.96,167.92,20.8425]
[1730424245996,12.40486104,167.97,167.92,20.8425]
[1730424246599,12.40486104,167.98,167.92,33.24736104]
[1730424246775,12.40486104,167.99,167.93,12.40486104]
[1730424246972,12.40486104,168.0,167.92,50.7185]
[1730424247182,12.40486104,168.0,167.94,12.40486104]
[1730424248192,12.40486104,168.0,167.95,20.8394]
[1730424248399,12.40486104,168.01,167.95,33.24426104]
[1730424248597,12.40486104,168.0,167.95,20.8394]
[1730424249694,12.40486104,168.01,167.95,27.29016104]
[1730424250995,12.40486104,168.02,167.96,12.40486104]
[1730424251184,12.40486104,168.02,167.96,15.30308164]
[1730424252501,12.40486104,167.99,167.95,20.8394]
[1730424252798,12.40486104,168.0,167.95,20.8394]
[1730424253171,12.40486104,167.98,167.95,20.8394]
[1730424253397,12.40486104,167.99,167.95,20.8394]
[1730424253583,12.40486104,168.0,167.95,20.8394]
[1730424253785,12.40486104,168.01,167.95,33.24426104]
[1730424254989,12.40486104,168.0,167.95,20.8394]
[1730424255390,12.40486104,168.01,167.95,12.40486104]
[1730424255698,12.40486104,168.0,167.94,12.40486104]
[1730424255900,12.40486104,168.01,167.95,12.40486104]
[1730424256385,12.40486104,168.0,167.95,5.9539]
[1730424256591,5.9513,168.03,167.93,5.9548]
[1730424256592,12.40486104,167.98,167.93,5.9548]
[1730424256775,12.40486104,167.96,167.93,2.90025837]
[1730424256976,12.40486104,167.96,167.92,14.888]
[1730424257187,12.40486104,167.96,167.9,12.40486104]
[1730424257188,12.40486104,167.96,167.9,18.36036104]
[1730424257404,12.40486104,167.96,167.91,2.90071851]
[1730424257698,12.40486104,167.95,167.91,2.90105668]
[1730424257995,12.40486104,167.95,167.9,18.36036104]
[1730424258392,12.40486104,167.95,167.9,33.25016104]
[1730424258798,12.40486104,167.96,167.9,33.25016104]
[1730424258985,12.40486104,167.96,167.91,12.40486104]
[1730424260004,12.40486104,167.96,167.9,27.29466104]
[1730424260518,12.40486104,167.94,167.9,14.8898]
[1730424261404,12.40486104,167.94,167.81,5.959]
[1730424261405,22.0774,167.88,167.81,5.959]
[1730424261704,12.40486104,167.85,167.81,5.959]
[1730424261902,12.40486104,167.85,167.8,8.86255141]
[1730424262207,5.9572,167.87,167.8,8.86255141]
[1730424262208,12.40486104,167.86,167.81,5.9589]
[1730424262384,18.36206104,167.87,167.81,18.36376104]
[1730424262583,18.36206104,167.87,167.82,18.36356104]
[1730424262584,12.40486104,167.87,167.82,18.36356104]
[1730424262797,22.0774,167.88,167.83,18.36286104]
[1730424263003,22.0774,167.88,167.84,6.5603963]
[1730424263304,27.88116104,167.93,167.87,12.40486104]
[1730424263506,33.83596104,167.93,167.88,12.40486104]
[1730424263809,33.83596104,167.93,167.87,12.40486104]
[1730424264632,12.40486104,167.9,167.84,33.86005734]
[1730424264785,12.40486104,167.89,167.84,21.4551963]
[1730424266006,18.36116104,167.89,167.84,15.4974963]
[1730424266585,12.40486104,167.88,167.84,0.6023963]
[1730424266994,18.36116104,167.89,167.84,0.6023963]
[1730424267997,5.9563,167.89,167.84,13.00725734]
[1730424268414,12.40486104,167.9,167.84,18.96525734]
[1730424268801,12.40486104,167.89,167.84,18.96525734]
[1730424269015,12.40486104,167.89,167.84,6.5603963]
[1730424269514,18.36076104,167.9,167.84,18.96525734]
[1730424270516,15.4763,167.93,167.84,18.96525734]
[1730424270517,12.40486104,167.89,167.84,6.5603963]
[1730424271098,12.40486104,167.89,167.84,0.6023963]
[1730424272309,12.40486104,167.89,167.84,13.00725734]
[1730424272506,12.40486104,167.89,167.84,18.96515734]
[1730424274104,12.40486104,167.9,167.84,18.96515734]
[1730424274417,7.96147269,167.9,167.84,14.52176899]
[1730424275311,7.96147269,167.91,167.85,7.96147269]
[1730424275519,15.4763,167.93,167.84,6.5602963]
[1730424275520,7.96147269,167.89,167.84,6.5602963]
[1730424275823,7.96147269,167.89,167.84,0.6023963]
[1730424277005,13.91797269,167.89,167.84,0.6023963]
[1730424277218,7.96147269,167.87,167.84,0.6023963]
[1730424277524,7.96147269,167.88,167.84,0.6023963]
[1730424277700,13.91797269,167.89,167.84,0.6023963]
[1730424277900,7.96147269,167.88,167.84,0.6023963]
[1730424278228,13.91827269,167.88,167.84,0.6023963]
[1730424279723,7.96147269,167.87,167.84,0.6023963]
[1730424280095,7.96147269,167.88,167.84,0.6023963]
[1730424280925,13.91827269,167.88,167.84,0.6023963]
[1730424283826,7.96147269,167.89,167.84,0.6023963]
[1730424284430,7.96147269,167.88,167.84,0.6023963]
[1730424284637,7.96147269,167.89,167.84,0.6023963]
[1730424284829,13.91807269,167.88,167.84,0.6023963]
[1730424287029,5.9566,167.88,167.84,0.6023963]
[1730424288035,5.9566,167.88,167.84,8.56386899]
[1730424289119,5.9562,167.89,167.85,7.96147269]
[1730424289309,13.91767269,167.89,167.84,0.6023963]
[1730424290427,7.96147269,167.88,167.84,0.6023963]
[1730424290808,5.9562,167.89,167.84,0.6023963]
[1730424290809,7.96147269,167.87,167.84,0.6023963]
[1730424292216,7.96147269,167.85,167.84,0.6023963]
[1730424292822,13.91877269,167.86,167.84,0.6023963]
[1730424293045,5.9573,167.86,167.84,0.6023963]
[1730424294748,7.96147269,167.86,167.84,0.6023963]
[1730424295726,7.96147269,167.85,167.84,0.6023963]
[1730424297153,28.98517269,167.86,167.84,0.6023963]
[1730424297446,13.91877269,167.86,167.84,0.6023963]
[1730424298554,7.96147269,167.85,167.84,0.6023963]
[1730424298847,13.91877269,167.86,167.84,0.6023963]
[1730424301627,7.96147269,167.87,167.84,0.6023963]
[1730424302124,7.96147269,167.86,167.84,0.6023963]
[1730424302528,7.96147269,167.85,167.84,0.6023963]
[1730424302753,8.33794269,167.85,167.84,0.6023963]
[1730424303050,74.95362669,167.85,167.84,0.6023963]
[1730424303521,74.95362669,167.85,167.76,2.90630841]
[1730424303522,0.12549,167.82,167.76,2.90630841]
[1730424303725,13.92197269,167.77,167.74,2.90630841]
[1730424303940,7.96147269,167.76,167.73,2.90630841]
[1730424304142,7.96147269,167.76,167.74,2.90630841]
[1730424304345,7.96147269,167.76,167.73,2.90630841]
[1730424304722,13.92197269,167.77,167.73,2.90630841]
[1730424304928,13.92197269,167.77,167.72,2.90630841]
[1730424305129,13.92197269,167.77,167.73,2.90630841]
[1730424305329,13.92197269,167.77,167.72,2.90630841]
[1730424306340,13.92197269,167.77,167.71,13.92397269]
[1730424306649,13.92197269,167.77,167.72,2.90574543]
[1730424307148,7.96147269,167.76,167.72,2.90574543]
[1730424307751,7.96147269,167.78,167.72,10.86721812]
[1730424308262,7.96147269,167.77,167.72,2.90574543]
[1730424308630,7.96147269,167.77,167.72,10.86721812]
[1730424308830,7.96147269,167.77,167.72,16.82941812]
[1730424310245,7.96147269,167.77,167.72,13.92367269]
[1730424310442,15.24778,167.83,167.72,13.92367269]
[1730424310443,7.96147269,167.81,167.76,7.96147269]
[1730424310643,7.96147269,167.83,167.77,7.96147269]
[1730424310856,23.75247269,167.84,167.78,7.96147269]
[1730424311445,29.71047269,167.84,167.78,7.96147269]
[1730424311768,7.96147269,167.84,167.79,20.8593]
[1730424312437,7.96147269,167.83,167.79,20.8593]
[1730424312760,7.96147269,167.83,167.79,14.8995]
[1730424313335,7.96147269,167.83,167.78,5.9599]
[1730424313539,7.96147269,167.82,167.77,13.92197269]
[1730424313845,7.96147269,167.82,167.77,5.9605]
[1730424314658,7.96147269,167.8,167.75,14.9023]
[1730424315763,13.92117269,167.8,167.75,14.9023]
[1730424315944,7.96147269,167.78,167.73,7.96147269]
[1730424316145,7.96147269,167.77,167.72,16.81036906]
[1730424316357,7.96147269,167.78,167.72,16.81036906]
[1730424316664,7.96147269,167.78,167.72,10.84816906]
[1730424317174,7.96147269,167.79,167.73,7.96147269]
[1730424317865,5.9601,167.78,167.73,7.96147269]
[1730424318266,13.92157269,167.78,167.73,7.96147269]
[1730424319065,13.92127269,167.79,167.73,7.96147269]
[1730424321663,13.92177269,167.78,167.73,7.96147269]
[1730424322763,5.9598,167.79,167.74,7.96147269]
[1730424323968,13.92127269,167.79,167.74,7.96147269]
[1730424324774,7.96147269,167.78,167.73,13.92317269]
[1730424325073,7.96147269,167.77,167.72,14.9057]
[1730424325369,7.96147269,167.75,167.7,5.9626]
[1730424325568,7.96147269,167.76,167.7,16.8089918]
[1730424326174,7.96147269,167.71,167.7,2.88491911]
[1730424326368,7.96147269,167.71,167.65,20.8759]
[1730424326548,7.96147269,167.71,167.65,28.83737269]
[1730424328251,7.96147269,167.7,167.65,28.83737269]
[1730424329069,7.96147269,167.7,167.65,14.9114]
[1730424329569,13.92457269,167.7,167.65,22.87287269]
[1730424329762,13.92457269,167.7,167.65,14.9114]
[1730424330452,7.96147269,167.7,167.65,28.83727269]
[1730424330754,7.96147269,167.7,167.62,79.13241457]
[1730424330755,7.96147269,167.69,167.64,7.96147269]
[1730424331155,7.96147269,167.69,167.64,13.92657269]
[1730424331362,13.92447269,167.7,167.64,13.92657269]
[1730424332973,13.92447269,167.7,167.65,7.96147269]
[1730424334776,13.92447269,167.7,167.64,7.96147269]
[1730424335569,7.96147269,167.69,167.64,7.96147269]
[1730424335755,7.96147269,167.68,167.62,79.13241457]
[1730424336661,7.96147269,167.68,167.62,93.05958726]
[1730424336970,7.96147269,167.7,167.65,7.96147269]
[1730424337180,5.9629,167.71,167.67,8.56386899]
[1730424338477,7.96147269,167.71,167.67,0.6023963]
[1730424338965,7.96147269,167.7,167.67,0.6023963]
[1730424339160,7.96147269,167.71,167.67,0.6023963]
[1730424339571,13.92377269,167.72,167.67,8.56386899]
[1730424339760,5.9623,167.72,167.67,8.56386899]
[1730424339968,13.92377269,167.72,167.67,8.56386899]
[1730424340556,7.96147269,167.73,167.67,29.43796899]
[1730424340755,7.96147269,167.74,167.69,7.96147269]
[1730424341167,7.96147269,167.75,167.7,7.96147269]
[1730424341475,7.96147269,167.76,167.71,7.96147269]
[1730424341971,7.96147269,167.76,167.7,7.96147269]
[1730424342181,7.96147269,167.75,167.7,7.96147269]
[1730424342474,7.96147269,167.75,167.69,13.92447269]
[1730424342680,7.96147269,167.75,167.7,7.96147269]
[1730424343883,7.96147269,167.75,167.7,13.92427269]
[1730424344083,7.96147269,167.75,167.7,28.83177269]
[1730424345878,7.96147269,167.76,167.7,28.83177269]
[1730424346272,7.96147269,167.75,167.7,28.83177269]
[1730424348888,7.96147269,167.77,167.72,7.96147269]
[1730424349284,7.96147269,167.78,167.73,7.96147269]
[1730424349480,7.96147269,167.8,167.74,7.96147269]
[1730424349697,21.5253,167.81,167.7,50.6854]
[1730424349698,13.92057269,167.81,167.75,7.96147269]
[1730424349999,7.96147269,167.8,167.74,7.96147269]
[1730424350180,7.96147269,167.8,167.67,7.2020963]
[1730424350181,22.1232,167.79,167.67,0.6023963]
[1730424350383,0.12549,167.78,167.67,14.52786899]
[1730424350576,7.96147269,167.71,167.67,6.5663963]
[1730424350778,7.96147269,167.72,167.67,6.5663963]
[1730424351285,7.96147269,167.71,167.67,15.5125963]
[1730424351993,7.96147269,167.7,167.67,0.6023963]
[1730424352186,7.96147269,167.68,167.67,0.6023963]
[1730424352893,0.22549,167.76,167.67,0.6023963]
[1730424352894,7.96147269,167.69,167.67,0.6023963]
[1730424353579,7.96147269,167.68,167.67,0.6023963]
[1730424353770,7.96147269,167.69,167.67,0.6023963]
[1730424353974,7.96147269,167.68,167.67,0.6023963]
[1730424356282,13.92517269,167.68,167.67,0.6023963]
[1730424358714,33.92517269,167.68,167.67,0.6023963]
[1730424359587,7.96147269,167.68,167.67,0.6023963]
[1730424360380,13.92517269,167.68,167.67,0.6023963]
[1730424361798,33.92517269,167.68,167.67,0.6023963]
[1730424362595,34.05066269,167.68,167.67,0.6023963]
[1730424362994,33.92517269,167.68,167.67,0.6023963]
[1730424363406,34.17615269,167.68,167.67,0.6023963]
[1730424363581,34.05066269,167.68,167.67,0.6023963]
[1730424364193,33.92517269,167.68,167.67,0.6023963]
[1730424365780,34.30164269,167.68,167.67,0.6023963]
[1730424368005,33.92517269,167.68,167.67,0.6023963]
[1730424369503,7.96147269,167.69,167.67,0.6023963]
[1730424370091,7.96147269,167.71,167.67,0.6023963]
[1730424370510,13.92377269,167.72,167.67,6.5662963]
[1730424370811,7.96147269,167.7,167.67,0.6023963]
[1730424371008,5.9623,167.72,167.67,0.6023963]
[1730424371009,7.96147269,167.69,167.67,0.6023963]
[1730424371306,7.96147269,167.68,167.67,0.6023963]
[1730424371510,13.92517269,167.68,167.67,0.6023963]
[1730424381709,34.05066269,167.68,167.67,0.6023963]
[1730424381893,34.30164269,167.68,167.67,0.6023963]
[1730424382093,50.94864269,167.68,167.67,0.6023963]
[1730424383713,20.47647,167.67,167.62,79.13241457]
[1730424383904,7.96147269,167.63,167.62,79.13241457]
[1730424384595,7.46147269,167.63,167.62,79.13241457]
[1730424385225,13.42697269,167.63,167.62,79.13241457]
[1730424385431,33.42697269,167.63,167.62,79.13241457]
[1730424386018,33.55246269,167.63,167.62,79.13241457]
[1730424386390,33.42697269,167.63,167.62,79.13241457]
[1730424395900,27.46147269,167.63,167.62,79.13241457]
[1730424396705,33.42697269,167.63,167.62,79.13241457]
[1730424401533,13.42697269,167.63,167.62,79.13241457]
[1730424401713,33.55246269,167.63,167.62,79.13241457]
[1730424403031,33.42697269,167.63,167.62,79.13241457]
[1730424408331,33.55246269,167.63,167.62,79.13241457]
[1730424412130,33.42697269,167.63,167.62,79.13241457]
[1730424420855,7.46147269,167.63,167.62,79.13241457]
[1730424422351,7.96147269,167.64,167.62,79.13241457]
[1730424423042,7.96147269,167.63,167.62,79.13241457]
[1730424423239,7.96147269,167.63,167.62,82.03336579]
[1730424423441,5.9648,167.65,167.62,82.03336579]
[1730424423442,7.96147269,167.65,167.62,82.03336579]
[1730424423744,7.96147269,167.66,167.63,2.90095122]
[1730424424066,7.96147269,167.66,167.64,2.90105516]
[1730424424274,7.96147269,167.66,167.63,2.90044169]
[1730424424443,7.96147269,167.66,167.64,2.90044169]
[1730424424647,7.96147269,167.66,167.62,85.09801457]
[1730424424842,7.96147269,167.66,167.63,2.90072454]
[1730424425039,7.96147269,167.66,167.64,2.90072454]
[1730424425270,7.96147269,167.66,167.62,85.09801457]
[1730424425271,7.96147269,167.66,167.63,2.90072454]
[1730424425455,7.96147269,167.66,167.62,85.09801457]
[1730424425643,7.96147269,167.66,167.63,2.90067293]
[1730424425839,7.96147269,167.67,167.62,107.97408726]
[1730424426048,7.96147269,167.66,167.63,2.90068075]
[1730424426252,7.96147269,167.66,167.64,2.90068075]
[1730424426466,7.96147269,167.66,167.63,2.90068075]
[1730424426666,7.96147269,167.69,167.64,10.86215344]
[1730424426859,7.96147269,167.71,167.65,32.79195344]
[1730424427060,7.96147269,167.71,167.66,2.90068075]
[1730424427366,7.96147269,167.68,167.65,21.9298]
[1730424428646,7.96147269,167.69,167.65,21.9298]
[1730424428954,7.96147269,167.7,167.65,50.76797269]
[1730424429266,7.96147269,167.71,167.66,2.89762064]
[1730424429652,7.96147269,167.68,167.66,2.89762064]
[1730424429851,7.96147269,167.68,167.65,21.9298]
[1730424430051,7.96147269,167.69,167.65,21.9298]
[1730424430490,7.96147269,167.7,167.65,44.80317269]
[1730424430768,7.96147269,167.7,167.66,5.9644]
[1730424431162,7.96147269,167.71,167.66,28.83697269]
[1730424431366,7.96147269,167.73,167.67,7.96147269]
[1730424432469,7.96147269,167.73,167.68,5.9637]
[1730424432677,7.96147269,167.72,167.68,5.9637]
[1730424434972,7.96147269,167.73,167.68,20.873]
[1730424435172,7.96147269,167.75,167.69,7.96147269]
[1730424435378,7.96147269,167.74,167.68,28.83447269]
[1730424435550,7.96147269,167.73,167.68,20.873]
[1730424436181,7.96147269,167.74,167.69,7.96147269]
[1730424436349,7.96147269,167.73,167.68,28.83447269]
[1730424437971,7.96147269,167.77,167.71,7.96147269]
[1730424438855,13.92207269,167.77,167.71,13.92387269]
[1730424439056,7.96147269,167.76,167.71,5.9624]
[1730424439363,7.96147269,167.79,167.73,7.96147269]
[1730424440279,7.96147269,167.78,167.73,5.9619]
[1730424440498,7.96147269,167.79,167.73,28.82827269]
[1730424440659,7.96147269,167.78,167.73,20.8668]
[1730424440860,7.96147269,167.77,167.73,20.8668]
[1730424441283,7.96147269,167.76,167.72,6.2767]
[1730424441463,7.96147269,167.75,167.72,6.2767]
[1730424441657,7.96147269,167.77,167.72,6.2767]
[1730424441856,7.96147269,167.77,167.72,27.1446]
[1730424442362,7.96147269,167.78,167.72,35.10607269]
[1730424442881,7.96147269,167.79,167.73,7.96147269]
[1730424443390,7.96147269,167.78,167.73,7.96147269]
[1730424443755,7.96147269,167.78,167.73,13.92317269]
[1730424444272,5.9599,167.79,167.72,27.1447]
[1730424444273,7.96147269,167.76,167.72,27.1447]
[1730424444654,7.96147269,167.76,167.72,21.1824]
[1730424444860,7.96147269,167.76,167.72,27.1447]
[1730424445081,7.96147269,167.77,167.72,27.1447]
[1730424445251,5.96147269,167.77,167.72,27.1447]
[1730424445881,5.96147269,167.77,167.72,35.10617269]
[1730424446383,11.92197269,167.77,167.72,35.10617269]
[1730424447183,5.96147269,167.77,167.72,35.10617269]
[1730424447857,13.92227269,167.76,167.7,7.96147269]
[1730424448186,7.96147269,167.73,167.69,16.6168]
[1730424448352,7.96147269,167.72,167.69,16.6168]
[1730424448557,7.96147269,167.73,167.69,16.6168]
[1730424449463,7.96147269,167.74,167.69,16.6168]
[1730424449679,13.92337269,167.74,167.69,16.6168]
[1730424451680,7.96147269,167.73,167.68,28.83377269]
[1730424452674,7.96147269,167.72,167.68,20.8723]
[1730424453895,7.96147269,167.73,167.68,28.83377269]
[1730424454388,7.96147269,167.71,167.67,6.2111015]
[1730424454565,7.96147269,167.72,167.67,20.13657419]
[1730424455187,20.8605,167.78,167.66,5.9644]
[1730424455188,7.96147269,167.69,167.66,5.9644]
[1730424455476,7.96147269,167.69,167.62,79.23241457]
[1730424455477,7.96147269,167.68,167.63,7.96147269]
[1730424455683,7.96147269,167.68,167.63,5.9654]
[1730424456196,7.96147269,167.68,167.63,13.92687269]
[1730424456873,13.92507269,167.69,167.63,28.84057269]
[1730424457672,7.96147269,167.69,167.63,28.84057269]
[1730424457881,7.96147269,167.69,167.64,7.96147269]
[1730424458481,13.92477269,167.69,167.63,28.84057269]
[1730424459390,7.96147269,167.7,167.64,7.96147269]
[1730424460485,7.96147269,167.7,167.65,5.9648]
[1730424460890,7.96147269,167.71,167.65,13.92627269]
[1730424461183,7.96147269,167.72,167.65,20.8768]
[1730424461392,7.96147269,167.72,167.67,7.96147269]
[1730424462095,7.96147269,167.72,167.66,7.96147269]
[1730424462288,7.96147269,167.71,167.65,22.87347269]
[1730424462482,7.96147269,167.7,167.65,22.87347269]
[1730424462690,7.96147269,167.71,167.65,22.87347269]
[1730424462883,7.96147269,167.72,167.66,7.96147269]
[1730424463277,7.96147269,167.72,167.67,5.964]
[1730424464008,13.92377269,167.72,167.67,5.964]
[1730424464180,7.96147269,167.72,167.67,28.83567269]
[1730424464898,13.92347269,167.73,167.67,28.83567269]
[1730424465291,7.96147269,167.72,167.67,28.83567269]
[1730424466897,13.92387269,167.72,167.67,20.8742]
[1730424468401,7.96147269,167.73,167.67,7.96147269]
[1730424469814,7.96147269,167.74,167.68,7.96147269]
[1730424470110,7.96147269,167.73,167.67,7.96147269]
[1730424470481,7.96147269,167.73,167.68,5.9637]
[1730424471208,7.96147269,167.74,167.68,28.83447269]
[1730424471817,13.92267269,167.76,167.7,7.96147269]
[1730424472105,20.0,167.75,167.7,7.96147269]
[1730424472313,13.92267269,167.76,167.7,7.96147269]
[1730424472609,13.92267269,167.76,167.7,13.92427269]
[1730424472987,13.92267269,167.76,167.7,28.83177269]
[1730424473181,15.7473,167.77,167.71,7.96147269]
[1730424473182,7.96147269,167.77,167.71,7.96147269]
[1730424473382,7.96147269,167.77,167.72,7.96147269]
[1730424474096,13.92177269,167.78,167.72,7.96147269]
[1730424474407,7.96147269,167.77,167.73,5.9619]
[1730424475489,7.96147269,167.77,167.71,7.96147269]
[1730424476592,7.96147269,167.77,167.72,5.9623]
[1730424477408,7.96147269,167.77,167.72,13.92377269]
[1730424477583,7.96147269,167.77,167.72,28.82947269]
[1730424478392,7.96147269,167.78,167.73,7.96147269]
[1730424478801,7.96147269,167.79,167.74,7.96147269]
[1730424480214,7.96147269,167.77,167.72,14.9057]
[1730424480422,7.96147269,167.76,167.72,14.9057]
[1730424481413,7.96147269,167.77,167.72,14.9057]
[1730424482711,13.92207269,167.77,167.72,14.37766818]
[1730424484199,7.96147269,167.76,167.72,14.37766818]
[1730424484898,7.96147269,167.76,167.71,13.92377269]
[1730424485094,7.96147269,167.74,167.68,31.72761563]
[1730424485291,7.96147269,167.74,167.69,7.96147269]
[1730424486092,7.96147269,167.74,167.7,5.963]
[1730424487419,7.96147269,167.73,167.68,22.86987269]
[1730424488509,7.96147269,167.73,167.68,28.83357269]
[1730424489218,7.96147269,167.74,167.68,28.83357269]
[1730424490316,13.92307269,167.74,167.68,28.83357269]
[1730424490517,5.9616,167.74,167.7,7.96147269]
[1730424491493,7.96147269,167.76,167.71,7.96147269]
[1730424491717,13.92087269,167.8,167.74,7.96147269]
[1730424492216,7.96147269,167.79,167.73,7.96147269]
[1730424492715,7.96147269,167.79,167.74,5.9616]
[1730424493923,7.96147269,167.78,167.73,20.8666]
[1730424494125,7.96147269,167.78,167.73,14.9047]
[1730424495707,7.96147269,167.77,167.72,7.96147269]
[1730424496024,13.92187269,167.78,167.72,13.92367269]
[1730424496226,13.92187269,167.78,167.73,7.96147269]
[1730424496424,13.92187269,167.78,167.72,5.9622]
[1730424496425,13.92127269,167.8,167.74,7.96147269]
[1730424496606,30.44427269,167.81,167.76,7.96147269]
[1730424498341,7.96147269,167.79,167.75,5.9611]
[1730424498635,7.96147269,167.8,167.75,5.9611]
[1730424499008,7.96147269,167.8,167.75,13.92257269]
[1730424500616,13.92057269,167.81,167.75,13.92257269]
[1730424501015,13.92057269,167.81,167.76,7.96147269]
[1730424501408,7.96147269,167.81,167.76,7.96147269]
[1730424501611,13.92027269,167.82,167.76,7.96147269]
[1730424501932,7.96147269,167.82,167.77,7.96147269]
[1730424502120,13.92007269,167.83,167.77,7.96147269]
[1730424502830,7.96147269,167.83,167.78,5.9601]
[1730424503027,7.96147269,167.81,167.78,5.9601]
[1730424504226,7.96147269,167.81,167.76,7.96147269]
[1730424504409,7.96147269,167.81,167.77,5.9605]
[1730424509137,7.96147269,167.82,167.77,5.9605]
[1730424510131,5.9584,167.83,167.78,7.96147269]
[1730424511541,13.91987269,167.83,167.78,13.92157269]
[1730424511715,13.91987269,167.83,167.78,5.9601]
[1730424513126,7.96147269,167.82,167.77,14.9013]
[1730424514445,7.96147269,167.82,167.77,20.8618]
[1730424515044,7.96147269,167.83,167.78,7.96147269]
[1730424516144,29.50247269,167.89,167.82,7.96147269]
[1730424516329,29.50247269,167.89,167.84,7.96147269]
[1730424517140,29.50247269,167.89,167.83,7.96147269]
[1730424517348,7.96147269,167.88,167.82,22.85837269]
[1730424517525,7.96147269,167.87,167.82,22.85837269]
[1730424518249,7.96147269,167.87,167.81,7.96147269]
[1730424518422,7.96147269,167.83,167.78,28.82087269]
[1730424518617,7.96147269,167.84,167.79,7.96147269]
[1730424518820,7.96147269,167.83,167.78,14.8996]
[1730424519043,7.96147269,167.83,167.78,22.86107269]
[1730424519231,7.96147269,167.83,167.77,7.96147269]
[1730424519440,13.92017269,167.82,167.77,7.96147269]
[1730424520552,13.92017269,167.82,167.77,13.92187269]
[1730424521334,7.96147269,167.83,167.77,13.92187269]